Cogmind - Beta 10.1 @@@ ROGUE MODE // 2020.09.28 @ 11:30:34 // Halloween2019/Abominations Player: HOTSOUP Result: Destroyed by Lesser Abomination with Advanced Beam Cannon Performance ------------- Evolutions (1) 500 Regions Visited (2) 400 Robots Destroyed (9) 45 Value Destroyed (348) 348 Prototype IDs (0) 0 Alien Tech Used (0) 0 Bonus (0) 0 TOTAL SCORE: 1293 Bonus ------- None Cogmind --------- Core Integrity 0/400 Matter 271/300 Energy 96/100 System Corruption 11% Temperature Cool (9) Movement Walking (120) Location -9/Materials Parts ------- > --- POWER (1) -------- (None) > --- PROPULSION (2) --- Aluminum Leg Aluminum Leg > --- UTILITY (3) ------ Small Storage Unit Visual Processing Unit Visual Processing Unit > --- WEAPON (3) ------- Small Laser Light Assault Rifle > --- INVENTORY (6) ---- (None) Peak State ------------ > --- POWER ------------ (None) > --- PROPULSION ------- Aluminum Leg Aluminum Leg > --- UTILITY ---------- Small Storage Unit Visual Processing Unit Visual Processing Unit > --- WEAPON ----------- Small Laser Light Assault Rifle Autogun > --- INVENTORY -------- (None) [Rating: 11] Favorites ----------- Power Light Ion Engine Engine Light Ion Engine Propulsion Light Treads Treads Light Treads Leg Aluminum Leg Utility Small Storage Unit Storage Small Storage Unit Processor Visual Processing Unit Weapon Light Assault Rifle Energy Gun Medium Laser Ballistic Gun Light Assault Rifle Build | -11 -10 -9 ------- Run | Scr Mat Mat Slots Evolved 2 | . . 2 Power . | . . . Propulsion . | . . . Utility 1 | . . 1 Weapon 1 | . . 1 Parts Attached 12 | 6 1 5 Power 1 | 1 . . Engine 1 | 1 . . Core . | . . . Reactor . | . . . Propulsion 4 | 2 . 2 Treads 2 | 2 . . Leg 2 | . . 2 Wheel . | . . . Hover . | . . . Flight . | . . . Utility 3 | 1 1 1 Device . | . . . Storage 1 | 1 . . Processor 2 | . 1 1 Hackware . | . . . Protection . | . . . Artifact . | . . . Weapon 4 | 2 . 2 Energy Gun 2 | 1 . 1 Energy Cannon . | . . . Ballistic Gun 2 | 1 . 1 Ballistic Cannon . | . . . Launcher . | . . . Special Weapon . | . . . Impact Weapon . | . . . Slashing Weapon . | . . . Piercing Weapon . | . . . Special Melee Weapon . | . . . Unidentified Prototypes . | . . . Parts Lost 5 | . 2 3 Power 1 | . 1 . Propulsion 2 | . . 2 Utility . | . . . Weapon 2 | . 1 1 Highest Loss Streak 1 | . 1 1 Average Slot Usage (%) 75 | . 86 64 Engine 5 | . 11 . Treads 22 | . 28 17 Leg 1 | . . 2 Storage 12 | . 14 11 Processor 9 | . 7 11 Energy Gun 5 | . 9 1 Ballistic Gun 17 | . 14 21 Naked Turns . | . . . Heaviest Build 10 | 10 10 9 Greatest Support 40 | 40 40 40 Greatest Overweight (x) 1 | 1 . . Average Overweight (x) . | . . . Largest Inventory Capacity 6 | 6 6 6 Average Capacity 5 | 5 6 6 Most Carried 3 | 3 3 3 Average Carried 2 | 1 3 2 Final Capacity 6 | 6 6 6 Final Carried 3 | 3 3 . Class Distribution -------------------- 100% | Mutant Dominant Class ---------------- Mutant | -10/Materials Mutant | -9/Materials Resources | -11 -10 -9 ----------- Run | Scr Mat Mat Matter Collected 424 | 255 47 122 Remotely . | . . . Salvage Created 353 | . 353 . Parts 20 | . 20 . Haulers Intercepted . | . . . Recyclers Shooed . | . . . Parts Field Recycled . | . . . Retrieved Matter . | . . . Parts Self-Destructed . | . . . Prevented . | . . . Kills | -11 -10 -9 ------- Run | Scr Mat Mat Combat Hostiles Destroyed 7 | . 7 . Guns 7 | . 7 . Classes Destroyed 4 | . 4 . Operator 1 | . 1 . Watcher 1 | . 1 . Grunt 4 | . 4 . Abomination 3 | . 3 . Best Kill Streak 3 | . 3 . Combat Bots Only 2 | . 2 . Max Kills in Single Turn 1 | . 1 . Gunslinging . | . . . Exploded . | . . . Melee . | . . . Uniques/NPCs Destroyed . | . . . Combat | -11 -10 -9 -------- Run | Scr Mat Mat Damage Taken 2080 | . 607 1473 Core 523 | . 109 414 Absorbed by Shields . | . . . Core Remaining (%) 78 | 100 56 . Volleys Fired 76 | . 49 27 Largest 2 | . 2 2 Hottest 70 | . 70 43 Shots Fired 128 | . 74 54 Gun 128 | . 74 54 Cannon . | . . . Launcher . | . . . Special . | . . . Kinetic 103 | . 49 54 Thermal 25 | . 25 . Explosive . | . . . Electromagnetic . | . . . Robot Hit Streak 11 | . 7 11 Robot Miss Streak 11 | . 5 11 Penetration Max . | . . . Secondary Targets . | . . . Shots Hit Robots 87 | . 52 35 Core Hits 23 | . 15 8 Critical Hits 1 | . . 1 Critical Kills . | . . . Critical Parts Destroyed 1 | . . 1 Melee Attacks . | . . . Impact . | . . . Slashing . | . . . Piercing . | . . . Sneak Attacks . | . . . Combat Hostiles . | . . . Follow-up Attacks . | . . . Damage Inflicted 909 | . 475 434 Guns 898 | . 475 423 Cannons . | . . . Explosions . | . . . Melee . | . . . Ramming 11 | . . 11 Kinetic 681 | . 258 423 Thermal 217 | . 217 . Explosive . | . . . Electromagnetic . | . . . Impact . | . . . Slashing . | . . . Piercing . | . . . Highest Corruption 11 | . . 11 Average Corruption 6 | . . 6 Corruption Purged . | . . . Effects 8 | . . 8 Message Errors 1 | . . 1 Matter Fused 1 | . . 1 Energy Discharges 2 | . . 2 Targeting Errors 4 | . . 4 Overload Shots . | . . . Overflow Damage . | . . . Projectiles . | . . . Explosions . | . . . Melee . | . . . Knockbacks . | . . . Impact . | . . . Kinetic . | . . . Secondary . | . . . Self-Inflicted Damage . | . . . Shots . | . . . Rammed 7 | . . 7 Targets Rammed 9 | . . 9 Kicked 2 | . . 2 Crushed . | . . . Highest Temperature 238 | . 238 2 Average Temperature 80 | . 81 2 Received Heat Transfer 333 | . 162 171 Effects 1 | . 1 . Interference 1 | . 1 . Siege Activations . | . . . Robots Corrupted . | . . . Combat Hostiles . | . . . Parts Fried 3 | . 3 . Impact Corruptions . | . . . Robots Melted . | . . . Combat Hostiles . | . . . Parts Melted . | . . . Heat Transferred 396 | . 396 . Parts Sabotaged . | . . . Parts Stolen . | . . . Parts Stripped . | . . . Power Chain Reactions . | . . . Missiles Intercepted . | . . . Alert | -11 -10 -9 ------- Run | Scr Mat Mat Peak Influence 137 | . 137 49 Initial 49 | . . 49 Average 57 | . 83 44 Maximum Alert Level . | . . . Low Security (%) 100 | 100 100 100 Level 1 . | . . . Level 2 . | . . . Level 3 . | . . . Level 4 . | . . . Level 5 . | . . . High Security . | . . . Max Security . | . . . Squads Dispatched 12 | . 7 5 Investigation 5 | . 3 2 Extermination . | . . . Reinforcement 5 | . 3 2 Assault 2 | . 1 1 Garrison . | . . . Intercept . | . . . Construction Impeded 1 | . . 1 Haulers Reinforced . | . . . Stealth | -11 -10 -9 --------- Run | Scr Mat Mat Distress Signals 5 | . 1 4 Communications Jammed . | . . . Distress Signals . | . . . Times Spotted 22 | . 18 4 Peak Tracking Total 8 | . 6 8 Tactical Retreats 2 | . 2 . Traps | -11 -10 -9 ------- Run | Scr Mat Mat Traps Triggered . | . . . Indirectly . | . . . Trap Hack Attempts . | . . . Triggered . | . . . Disarmed . | . . . Reprogrammed . | . . . Reused . | . . . Traps Extracted . | . . . Installed . | . . . Triggered . | . . . Machines | -11 -10 -9 ---------- Run | Scr Mat Mat Machines Disabled . | . . . Max in Single Turn . | . . . Machines Sabotaged . | . . . Garrisons Compromised . | . . . Overloaded Fab Kills . | . . . Fab Network Shutdowns . | . . . Hacking | -11 -10 -9 --------- Run | Scr Mat Mat Machines Accessed 1 | . . 1 Terminals 1 | . . 1 Fabricators . | . . . Repair Stations . | . . . Recycling Units . | . . . Scanalyzers . | . . . Garrison Access . | . . . Total Hacks 3 | . . 3 Successful . | . . . Failed 3 | . . 3 Catastrophic 3 | . . 3 Database Lockouts . | . . . Manual 3 | . . 3 Terminals 3 | . . 3 Fabricators . | . . . Repair Stations . | . . . Recycling Units . | . . . Scanalyzers . | . . . Garrison Access . | . . . Terminal Hacks . | . . . Fabricator Hacks . | . . . Repair Station Hacks . | . . . Recycling Unit Hacks . | . . . Scanalyzer . | . . . Garrison Access Hacks . | . . . Unauthorized Hacks . | . . . Terminals . | . . . Fabricators . | . . . Repair Stations . | . . . Recycling Units . | . . . Scanalyzers . | . . . Garrison Access . | . . . Data Cores Recovered . | . . . Used . | . . . Hacking Detections 1 | . . 1 Full Trace Events 1 | . . 1 Feedback Events . | . . . Feedback Blocked . | . . . Robot Schematics Acquired . | . . . Robots Built . | . . . Matter . | . . . Time . | . . . Total Robot Build Rating . | . . . Part Schematics Acquired . | . . . Parts Built . | . . . Matter . | . . . Time . | . . . Total Part Build Rating . | . . . Parts Repaired . | . . . Time . | . . . Parts Recycled . | . . . Recycled Matter . | . . . Retrieved Matter . | . . . Retrieved Components . | . . . Parts Scanalyzed . | . . . Part Schematics Acquired . | . . . Parts Damaged . | . . . Bothacking | -11 -10 -9 ------------ Run | Scr Mat Mat Used RIF Installer . | . . . Robots Hacked . | . . . Non-combat . | . . . Combat . | . . . Robot Hacks Applied . | . . . Relay Couplers Released . | . . . Robots Rewired . | . . . Allies Hacked . | . . . Hacks Repelled . | . . . Allies | -11 -10 -9 -------- Run | Scr Mat Mat Total Allies . | . . . Largest Group . | . . . Highest-Rated Group . | . . . Highest-Rated Ally . | . . . Total Orders . | . . . Ally Attacks . | . . . Total Damage . | . . . Kills . | . . . Allies Corrupted . | . . . Allies Melted . | . . . Intel | -11 -10 -9 ------- Run | Scr Mat Mat Robot Analysis Total . | . . . Derelict Logs Recovered . | . . . Drone Launches . | . . . Drone Recoveries . | . . . Exploration | -11 -10 -9 ------------- Run | Scr Mat Mat Turns Passed 694 | 69 304 321 Spaces Moved 303 | 43 115 145 Core 10 | 10 . . Treads 272 | 33 115 124 Legs 21 | . . 21 Wheels . | . . . Hover . | . . . Flight . | . . . Fastest Speed 50 | 50 160 120 Average Speed 153 | 135 160 154 Slowest Speed 160 | 160 160 160 Overloaded Moves . | . . . Propulsion Burnouts . | . . . Robots Hopped . | . . . Cave-ins Triggered . | . . . Exploration Rate (%) 18 | 5 27 22 Regions Visited 2 Branch Regions . Pre-discovered Areas . | . . . Known Exits Taken . | . . . Unknown Exits Taken 2 | 1 1 . Scrap Searched . | . . . Spaces Dug . | . . . Terrain Destroyed . | . . . Melee . | . . . Projectile . | . . . AOE . | . . . Terrain Rammed . | . . . Walls Destroyed . | . . . Machines Disabled . | . . . Actions | -11 -10 -9 --------- Run | Scr Mat Mat Total 414 | 51 170 193 Wait 13 | . 6 7 Move 301 | 42 114 145 Hop . | . . . Pick Up 3 | 3 . . Fast Attach 9 | 6 1 2 Attach 3 | . . 3 Detach . | . . . Swap . | . . . Drop . | . . . Fire 76 | . 49 27 Melee . | . . . Ram . | . . . Kick 2 | . . 2 Crush 7 | . . 7 Escape Stasis . | . . . Rewire . | . . . Trap . | . . . Miscellaneous . | . . . Route ------- -11/Scrapyard -10/Materials -9/Materials History --------- Turn | Location | Event 7 | -11/Scrapyard | Discovered new exit (range 16) 70 | -11/Scrapyard | Entered Materials 164 | -10/Materials | Discovered new exit (range 16) 302 | -10/Materials | Build established: Mutant 374 | -10/Materials | Entered another Materials area 374 | -9/Materials | Evolved 2 slots: Utility x1, Weapon x1 658 | -9/Materials | Core integrity fell below 50% 665 | -9/Materials | System corruption reached 10% 675 | -9/Materials | Core integrity fell below 20% 695 | -9/Materials | Destroyed by Lesser Abomination with Advanced Beam Cannon Last Messages --------------- 00654_ Slammed into Lesser Abomination. 00656_ System corrupted: Energy discharge (-29). 00656_ Slammed into Lesser Abomination. 00658_ Lesser Abomination suffers critical hit. 00658_ Destroyed Aluminum Leg. 00658_ R-06 Scavenger collects Terrain Scanner. 00659_ Lesser Abomination absorbs Hover Unit. 00660_ Lgt. Treads destroyed. 00661_ R-06 Scavenger collects Welding Torch. 00663_ Parts repaired by Paradox Anomaly. 00665_ Zapped by an electromagnetic arc from EM Anomaly. 00666_ Parts repaired by Paradox Anomaly. 00671_ Acquired 30 matter. 00675_ QMA F/GEP2WXWHPPJPZ/LSO 00675_ Kicked Lesser Abomination out of the way. 00677_ Kicked Resonating Anomaly out of the way. 00678_ Acquired 49 matter. 00681_ Acquired Visual Processing Unit. 00688_ Acquired 43 matter. 00691_ Autogun destroyed. Map ----- +----------------------------------------------------+ | ????????????????????????????????????## " " | | ????????????????????????#########???# " " | | ????????????????????????# """ #????# " "" | | ????????????????????????# "T" #???# " " | | ????????????????????????# ##### " " | | ????????????????????????# # #### " " | | ????????????????????????# " # #" " | | ????????????????##+###+####""""""""""""# # | | ????????????????#% % % + | | ????????????????# """"""""""# ## | | ????????????????# ! " " ## | | ????????????????# A " ######### | | ????????????????#A ##### %" #????####+## | | ????????????????# A[#???# " #????#! | | ????????????????# #???# " #????# | | ????????????????+ #???# #?#????# """ | | ????????????????#= #???# % #??????# "R | | ???????????????## ##??# #??????# """ = | | ???????????????# A #??#% #??????# | | ???????????????# #??# #??????######" | | ???????????????+ #??#% !#???????????# | | ???????????????# #??# % #???????????## | | ???????????????# #??# %#???????????? | | ???????????????### ###??#+##+#????????????# | | ?????????????????# #????? ?? ?????????????? | | ?????????????????#@#?????"??%?????????????? | | ?????????????????# ; ?????????????????????? | | ?????????????????; ; ???????????????????? | | ?????????????????; ;;;;;;?????????????????? | | ???????????????? ; #????????????????? | | ????????????????;;;;; ; ##????????????????? | | ??????????????? ;;;;;n;##?????????????????? | | ??????????????? ; ?????????########## | | ??????????????; ; #????????# # | | ??????????????; ; =%#????????# # | | ????????????? ; ; #????????# # | | ????????????? ; ; /????????# # | | ????????????;;; ;;;;;####????????# + | | ????????????; ???????????# # | | ??????????? ???????????# # | | ??????????? ???????????# = # | | ?????????????? ???????????# # | | ???????????????? %###????????????########## | | ??????????????????????????????????????????? | | ??????????????????????????????????????????? | | ??????????????????????????????????????????? | | ??????????????????????????????????????????? | | ??????????????????????????????????????????? | | ??????????????????????????????????????????? | | ??????????????????????????????????????????? | +----------------------------------------------------+ Best States ------------- Heat Dissipation 28 Energy Generation 10 Energy Capacity 125 Matter Stores 300 Matter Capacity 300 Sight Range 18 Terrain Scan Density 10 Evasion (%) 50 Recoil Reduction 2 Item Schematics ----------------- None Robot Schematics ------------------ None Fabricated ------------ Nothing Alien Tech Used ----------------- None Achievements -------------- None Challenges ------------ None Game ------ Seed UltimateSpectralExoskeleton Manual? 0 Play Time 00:10:05 Cumulative 67.5 hours Start 2020.09.28 @ 11:23:00 End 2020.09.28 @ 11:30:34 Sessions 1 Manual Loads 0 Difficulty Rogue Special Mode Halloween2019/Abominations Game No. 89 Rogue 65 Adventurer 22 Explorer 2 Win Type - Total 1 Types 1/0/0/0/0/0/0/0/0 Lore% 42 Gallery% 45 Achievement% 39 Wizard Run 0 Options --------- ASCII 0 Keyboard 0 Movement Numpad Keybinds 0 Fullscreen 1 Font 14/SmallcapsGlow Map View 84x54 Tactical HUD 1 Map Filters NONE Filters NONE Steam 1 RUN: c94c195a-d33c-40bb-80bc-234d1db42b99